bitfinex/quotes_ETHUSD_20250822
["timestamp","ask_amount","ask_price","bid_price","bid_amount"]
[1755894667448,4.89298,4840.8,4840.5,3.0]
[1755894667685,0.4697,4840.7,4840.1,4.880565]
[1755894667977,0.2898,4840.2,4840.1,7.26]
[1755894668288,3.8648,4840.2,4840.1,7.26]
[1755894672340,4.3345,4840.2,4840.1,3.0]
[1755894672584,4.8113,4840.2,4840.1,3.0]
[1755894672991,4.8113,4840.2,4840.0,0.001]
[1755894673167,0.4697,4840.1,4840.0,0.001]
[1755894673384,0.8627,4840.1,4840.0,0.001]
[1755894673562,1.88445,4840.1,4840.0,0.001]
[1755894673757,5.45945,4840.1,4840.0,0.001]
[1755894674086,5.92915,4840.1,4840.0,0.001]
[1755894675685,6.58915,4840.1,4840.0,0.001]
[1755894676410,16.579275,4840.1,4840.0,0.001]
[1755894677158,19.579275,4840.1,4840.0,0.001]
[1755894677785,20.02195073,4840.1,4840.0,0.001]
[1755894678171,19.73550231,4840.1,4840.0,0.001]
[1755894679601,16.16050231,4840.1,4840.0,0.001]
[1755894679757,19.73550231,4840.1,4840.0,0.001]
[1755894680564,1.16,4839.9,4839.8,0.02]
[1755894680752,7.807378,4839.9,4839.8,0.02]
[1755894680958,11.382378,4839.9,4839.8,0.02]
[1755894681304,12.351678,4839.9,4839.8,0.02]
[1755894681453,3.5,4838.8,4837.8,0.02]
[1755894681654,0.9455,4837.9,4837.8,0.02]
[1755894681890,6.2495,4837.9,4837.8,0.02]
[1755894682073,7.34375,4837.9,4837.8,0.02]
[1755894683177,17.34375,4837.9,4837.8,0.02]
[1755894684394,15.92695,4837.9,4837.8,0.02]
[1755894685140,16.87245,4837.9,4837.8,0.02]
[1755894685289,17.34175,4837.9,4837.8,0.02]
[1755894685722,16.87245,4837.9,4837.8,0.02]
[1755894685937,17.34175,4837.9,4837.8,0.02]
[1755894686223,17.424591,4837.9,4837.8,0.02]
[1755894686409,20.424591,4837.9,4836.3,0.001]
[1755894686587,5.8671591,4837.8,4836.3,0.001]
[1755894686788,0.9455,4837.2,4836.3,0.001]
[1755894687119,4.5285,4837.2,4836.3,0.001]
[1755894687334,4.243,4837.2,4836.3,0.001]
[1755894687489,4.6673,4837.2,4836.4,0.4566]
[1755894687689,4.0073,4837.2,4836.4,0.4566]
[1755894687926,4.6673,4837.2,4836.4,0.4566]
[1755894688094,4.6683,4837.2,4836.3,0.4576]
[1755894688461,4.6683,4837.2,4836.3,0.001]
[1755894688462,4.951,4837.2,4836.3,0.001]
[1755894688793,5.4185,4837.2,4836.3,0.001]
[1755894689320,14.951,4837.2,4836.3,0.001]
[1755894689714,15.4185,4837.2,4836.3,0.001]
[1755894690630,11.4702,4837.2,4836.3,0.001]
[1755894690834,14.7745,4837.2,4836.4,0.4566]
[1755894692021,14.1145,4837.2,4837.1,0.3074]
[1755894692233,14.3972,4837.2,4837.1,0.001]
[1755894692417,14.8647,4837.2,4837.1,0.001]
[1755894692743,15.0572,4837.2,4837.1,0.001]
[1755894693640,15.5247,4837.2,4837.1,0.001]
[1755894694021,15.607553,4837.2,4837.1,0.001]
[1755894694429,14.954,4837.2,4837.1,0.001]
[1755894694609,11.1875,4837.2,4837.1,0.001]
[1755894694812,14.7785,4837.2,4837.1,0.001]
[1755894695143,15.5287,4837.2,4837.1,0.001]
[1755894695444,15.0612,4837.2,4837.1,0.001]
[1755894696020,14.7785,4837.2,4837.1,0.3074]
[1755894696423,15.0612,4837.2,4837.1,0.001]
[1755894696633,15.5287,4837.2,4837.1,0.001]
[1755894698241,15.0612,4837.2,4837.1,0.001]
[1755894698944,14.7785,4837.2,4837.1,0.001]
[1755894699330,11.1875,4837.2,4837.1,0.001]
[1755894699531,14.7785,4837.2,4837.1,0.001]
[1755894701324,10.5275,4837.2,4837.1,0.764]
[1755894701524,13.6912,4837.2,4837.1,0.764]
[1755894706336,14.6367,4837.2,4837.1,0.001]
[1755894706549,15.106,4837.2,4837.1,0.001]
[1755894707561,20.488,4837.2,4837.1,0.001]
[1755894708257,19.7352,4837.2,4837.1,0.001]
[1755894708438,21.70872,4837.2,4837.1,0.001]
[1755894709384,21.99612,4837.2,4837.1,0.001]
[1755894709535,22.43932,4837.2,4837.1,0.001]
[1755894712054,22.88340065,4837.2,4837.1,0.001]
[1755894717133,22.43932,4837.2,4837.1,0.001]
[1755894717355,22.88292593,4837.2,4837.1,0.001]
[1755894717567,26.43141673,4837.2,4837.1,0.001]
[1755894717773,26.46579093,4837.2,4837.1,0.001]
[1755894718357,27.20444886,4837.2,4837.1,0.001]
[1755894718673,26.46579093,4837.2,4837.1,0.001]
[1755894718867,25.96579093,4837.2,4837.1,0.001]
[1755894719059,26.46579093,4837.2,4837.1,0.001]
[1755894719259,3.66,4837.1,4836.1,0.001]
[1755894719491,1.0506,4836.2,4836.1,0.001]
[1755894719782,7.6416,4836.2,4836.1,0.001]
[1755894719934,8.52840593,4836.2,4836.1,0.001]
[1755894720138,8.61128693,4836.2,4836.1,0.001]
[1755894720366,4.335881,4836.2,4836.1,0.001]
[1755894720539,4.05896889,4836.2,4836.1,0.2898]
[1755894720741,3.593,4836.2,4836.1,0.2898]
[1755894720936,3.593,4836.2,4836.1,0.718]
[1755894721241,13.593,4836.2,4836.1,0.718]
[1755894721572,13.593,4836.2,4836.1,0.001]
[1755894721779,14.9836,4836.2,4836.1,0.001]
[1755894722073,16.48196,4836.2,4836.1,0.001]
[1755894722269,16.03876,4836.2,4836.1,0.001]
[1755894722475,10.0,4836.2,4836.1,0.718]
[1755894722772,14.263,4836.2,4836.1,0.2898]
[1755894723688,14.263,4836.2,4836.1,0.001]
[1755894723986,14.263,4836.2,4836.1,0.2898]
[1755894724192,15.6893,4836.2,4836.1,0.2898]
[1755894724389,15.9767,4836.2,4836.1,0.001]
[1755894725890,16.4199,4836.2,4836.1,0.001]
[1755894726105,12.3737,4836.2,4836.1,0.001]
[1755894726404,15.9807,4836.2,4836.1,0.001]
[1755894727167,15.6933,4836.2,4836.1,0.001]
[1755894728208,15.9807,4836.2,4836.1,0.001]
[1755894728507,16.4239,4836.2,4836.1,0.001]
[1755894729072,19.4239,4836.2,4836.1,0.001]
[1755894729492,15.6933,4836.2,4836.1,0.001]
[1755894729827,16.506775,4836.2,4836.1,0.001]
[1755894730008,20.306775,4836.2,4836.1,0.001]
[1755894730409,20.63058406,4836.2,4836.1,0.001]
[1755894730606,21.07321109,4836.2,4836.1,0.001]
[1755894730903,21.17641109,4836.2,4836.1,0.001]
[1755894731516,17.18938406,4836.2,4836.1,0.001]
[1755894732214,16.24198406,4836.2,4836.1,0.001]
[1755894732583,17.18938406,4836.2,4836.1,0.001]
[1755894733187,17.63258406,4836.2,4836.1,0.001]
[1755894733804,17.18938406,4836.2,4836.1,0.001]
[1755894734247,17.63258406,4836.2,4836.1,0.001]
[1755894739357,20.63258406,4836.2,4836.1,0.001]
[1755894739572,20.63258406,4836.2,4835.8,0.021]
[1755894739573,0.66,4836.1,4835.8,0.021]
[1755894739855,2.6829,4835.9,4835.8,0.021]
[1755894740020,5.6829,4835.9,4835.8,0.021]
[1755894740223,6.1551,4835.9,4835.8,0.021]
[1755894740836,6.237995,4835.9,4835.8,0.021]
[1755894741037,6.68129634,4835.9,4835.8,0.021]
[1755894741255,8.82317434,4835.9,4835.8,0.021]
[1755894741461,8.92637434,4835.9,4835.8,0.021]
[1755894741661,12.53637434,4835.9,4835.8,0.021]
[1755894742260,22.53637434,4835.9,4835.8,0.021]
[1755894743251,22.68950791,4835.9,4835.8,0.021]
[1755894744184,0.66,4835.5,4835.3,0.001]
[1755894744477,7.5679,4835.4,4835.3,0.001]
[1755894744646,8.58660134,4835.4,4835.3,0.001]
[1755894744851,8.91049203,4835.4,4835.3,0.001]
[1755894745258,18.91049203,4835.4,4835.3,0.001]
[1755894745454,21.05437003,4835.4,4835.3,0.001]
[1755894749412,21.13728203,4835.4,4835.3,0.001]
[1755894750306,20.81339134,4835.4,4835.3,0.001]
[1755894753076,15.77129134,4835.4,4835.3,0.3127]
[1755894753409,20.35330781,4835.4,4835.3,0.3127]
[1755894753580,20.35230781,4835.4,4835.3,0.3127]
[1755894754236,20.35230781,4835.4,4835.3,0.001]
[1755894754415,20.65220781,4835.4,4835.3,0.001]
[1755894754931,21.12440781,4835.4,4835.3,0.001]
[1755894755295,20.65220781,4835.4,4835.3,0.001]
[1755894755495,20.65220781,4835.4,4834.1,0.061]
[1755894755496,3.66,4835.3,4834.1,0.061]
[1755894755697,3.66,4835.1,4834.1,0.061]
[1755894755892,22.77650874,4834.6,4834.1,0.061]
[1755894756113,26.81794153,4834.6,4834.1,0.061]
[1755894756325,27.29014153,4834.6,4834.1,0.061]
[1755894756530,27.29014153,4834.6,4833.8,0.021]
[1755894756531,0.66,4834.2,4833.8,0.021]
[1755894756732,21.05350874,4833.9,4833.8,0.021]
[1755894756932,25.09694153,4833.9,4833.8,0.021]
[1755894757130,25.65208053,4833.9,4833.8,0.021]
[1755894757331,4.16,4833.8,4832.0,0.4328]
[1755894757537,22.54503717,4833.9,4832.2,0.4328]
[1755894757538,5.4862,4833.4,4832.2,0.4328]
[1755894757729,5.4862,4833.4,4830.8,0.021]
[1755894757730,9.52963279,4833.4,4833.3,0.3127]
[1755894758131,9.0872,4833.4,4833.3,0.3127]
[1755894758337,9.36016109,4833.4,4833.3,0.3127]
[1755894758560,6.0872,4833.4,4833.3,0.7455]
[1755894758725,6.9101078,4833.4,4833.3,0.7455]
[1755894759124,2.6491078,4833.4,4833.3,0.7455]
[1755894759326,6.2501078,4833.4,4833.3,0.7455]
[1755894759650,6.9101078,4833.4,4833.3,0.7455]
[1755894760161,16.2501078,4833.4,4833.3,0.7455]
[1755894760646,16.9101078,4833.4,4833.3,0.7455]
[1755894761822,16.0872,4833.4,4833.3,0.7455]
[1755894763123,16.0872,4833.4,4833.3,0.3127]
[1755894763725,16.541,4833.4,4833.3,0.3127]
[1755894763927,16.541,4833.4,4833.3,0.7455]
[1755894765727,16.541,4833.4,4833.3,0.3127]
[1755894765952,18.4092878,4833.4,4833.3,0.3127]
[1755894766947,18.73324767,4833.4,4833.3,0.3127]
[1755894767666,15.13224767,4833.4,4833.3,0.7455]
[1755894767967,18.27144767,4833.4,4833.3,0.7455]
[1755894771663,11.08715987,4833.4,4833.3,0.7455]
[1755894771870,16.0772,4833.4,4833.3,0.7455]
[1755894772444,15.4172,4833.4,4833.3,0.7455]
[1755894772740,16.0772,4833.4,4833.3,0.7455]
[1755894772959,15.4172,4833.4,4833.3,0.7455]
[1755894773270,15.4172,4833.4,4833.3,1.871065]
[1755894773757,17.61892,4833.4,4833.3,1.126565]
[1755894773955,17.90552,4833.4,4833.3,1.126565]
[1755894774553,21.79273215,4833.4,4833.3,1.126565]
[1755894775448,22.11671753,4833.4,4833.3,1.126565]
[1755894775849,39.10712627,4833.4,4833.3,1.126565]
[1755894777855,39.5285012,4833.4,4833.3,1.126565]
[1755894778036,39.52850083,4833.4,4833.3,1.126565]
[1755894778996,38.97554419,4833.4,4833.3,1.126565]
[1755894780178,38.97554419,4833.4,4832.8,0.021]
[1755894780179,5.801878,4833.3,4832.8,0.021]
[1755894780504,1.0498,4832.9,4832.8,0.021]
[1755894780703,7.6358,4832.9,4832.8,0.021]
[1755894780895,8.52301215,4832.9,4832.8,0.021]
[1755894781080,10.39050229,4832.9,4832.8,0.021]
[1755894781408,16.99691015,4832.9,4832.8,0.021]
[1755894781568,19.00110229,4832.9,4832.8,0.3227]
[1755894781772,19.40807985,4832.9,4832.8,0.3227]
[1755894782373,20.06807985,4832.9,4832.8,0.021]
[1755894782569,20.06779242,4832.9,4832.8,0.3227]
[1755894782774,17.06779242,4832.9,4832.8,0.3227]
[1755894783099,19.6246677,4832.9,4832.8,0.3227]
[1755894783297,19.9112677,4832.9,4832.8,0.021]
[1755894783814,19.6246677,4832.9,4832.8,0.021]
[1755894784289,19.9112677,4832.9,4832.8,0.021]
[1755894785289,20.2227677,4832.9,4832.8,0.021]
[1755894785915,20.66615551,4832.9,4832.8,0.021]
[1755894787223,20.06805551,4832.9,4832.8,0.3227]
[1755894787424,16.6246677,4832.9,4832.8,0.7763]
[1755894787719,19.6246677,4832.9,4832.8,0.7763]
[1755894788018,19.6246677,4832.9,4832.8,0.3227]
[1755894789588,15.3776677,4832.9,4832.8,0.7763]
[1755894789793,20.6886677,4832.9,4832.8,0.3227]
[1755894789989,20.36463114,4832.9,4832.8,0.3227]
[1755894790225,20.36463114,4832.9,4832.8,0.021]
[1755894790226,21.31123114,4832.9,4832.8,0.021]
[1755894792033,22.11123114,4832.9,4832.8,0.021]
[1755894792398,22.00803114,4832.9,4832.8,0.021]
[1755894792805,22.45183114,4832.9,4832.8,0.021]
[1755894793838,21.72143114,4832.9,4832.8,0.3227]
[1755894795042,22.00803114,4832.9,4832.8,0.021]
[1755894796536,21.72143114,4832.9,4832.8,0.3227]
[1755894796739,18.13443114,4832.9,4832.8,0.7763]
[1755894796942,21.72143114,4832.9,4832.8,0.7763]
[1755894797241,21.06143114,4832.9,4832.8,0.7763]
[1755894797806,16.193941,4832.9,4832.8,0.7763]
[1755894798559,12.524,4832.9,4832.8,0.7763]
[1755894798702,16.111,4832.9,4832.8,0.7763]
[1755894798900,15.971,4832.9,4832.8,0.7763]
[1755894799300,15.311,4832.9,4832.8,0.7763]
[1755894799736,15.971,4832.9,4832.8,0.7763]
[1755894799941,15.311,4832.9,4832.8,0.7763]
[1755894800123,10.0,4832.9,4832.8,0.7763]
[1755894800323,15.311,4832.9,4832.8,0.7763]
[1755894802751,15.4142,4832.9,4832.8,0.7763]
[1755894803102,5.4142,4832.9,4832.8,0.7763]
[1755894804150,6.7742,4832.9,4832.8,0.7763]
[1755894804450,16.7742,4832.9,4832.8,0.7763]
[1755894805458,12.5272,4832.9,4832.8,0.7763]
[1755894805613,16.7732,4832.9,4832.8,0.7763]
[1755894808058,16.1132,4832.9,4832.8,0.7763]
[1755894808259,16.1122,4832.9,4832.8,0.7763]
[1755894808757,15.4122,4832.9,4832.8,0.7763]
[1755894809327,5.4122,4832.9,4832.8,0.7763]
[1755894810482,1.8272,4832.9,4832.8,0.7763]
[1755894810770,5.309,4832.9,4832.8,0.7763]
[1755894812621,5.309,4832.9,4832.8,17.76670874]
[1755894812822,5.309,4832.9,4832.8,20.76670874]
[1755894813022,5.309,4832.9,4832.8,20.86990874]
[1755894814140,0.002,4833.3,4832.9,3.0]
[1755894814325,3.585,4833.2,4833.0,0.02069108]
[1755894814528,3.585,4833.2,4833.1,0.7511]
[1755894814728,3.585,4833.2,4833.1,0.8543]
[1755894819971,0.002,4833.3,4833.1,0.8543]
[1755894819972,0.002,4833.3,4833.1,0.77179065]
[1755894820193,3.584,4833.2,4833.1,0.4025]
[1755894820769,3.584,4833.2,4833.1,0.8543]
[1755894821469,3.583,4833.3,4833.1,0.8543]
[1755894821647,3.583,4833.3,4833.2,0.4518]
[1755894821975,3.583,4833.3,4833.2,0.7511]
[1755894822484,3.583,4833.3,4833.2,0.8543]
[1755894823671,3.585,4833.5,4833.2,0.8543]
[1755894823913,3.585,4833.5,4833.3,0.47248979]
[1755894824057,3.585,4833.5,4833.4,0.2993]
[1755894824258,3.585,4833.5,4833.4,0.7511]
[1755894828407,3.585,4833.5,4833.4,11.30802366]
[1755894828806,3.585,4833.5,4833.4,11.46383064]
[1755894833812,3.8957,4833.5,4833.4,10.55692366]
[1755894834372,4.285,4833.5,4833.4,11.30642366]
[1755894834588,3.585,4833.5,4833.4,11.30642366]
[1755894835017,3.585,4833.5,4833.4,10.86112366]
[1755894837760,3.8957,4833.5,4833.4,10.55692366]
[1755894838506,3.585,4833.5,4833.4,10.55692366]
[1755894838743,3.8957,4833.5,4833.4,10.55692366]
[1755894839244,4.3344,4833.5,4833.4,10.55692366]
[1755894839416,5.0344,4833.5,4833.4,10.55692366]
[1755894840408,5.0344,4833.5,4833.3,0.001]
[1755894840636,0.94234,4833.4,4833.3,0.001]
[1755894840852,1.25304,4833.4,4833.3,0.001]
[1755894841055,1.91304,4833.4,4833.3,0.001]
[1755894841205,1.91304,4833.4,4832.8,0.021]
[1755894841206,0.66,4833.3,4832.8,0.021]
[1755894841408,0.3107,4832.9,4832.8,0.021]
[1755894841738,3.8907,4832.9,4832.8,0.021]
[1755894842099,4.3294,4832.9,4832.8,0.021]
[1755894845838,5.28158778,4832.9,4832.8,0.021]
[1755894846165,5.94158778,4832.9,4832.8,0.021]
[1755894846337,6.56353478,4832.9,4832.8,0.021]
[1755894847366,16.56353478,4832.9,4832.8,0.021]
[1755894850532,16.66673478,4832.9,4832.8,0.021]
[1755894851265,19.66673478,4832.9,4832.8,0.021]
[1755894854487,16.08673478,4832.9,4832.8,0.021]
[1755894854686,19.66673478,4832.9,4832.8,0.021]
[1755894856566,16.08673478,4832.9,4832.8,0.021]
[1755894856761,19.66673478,4832.9,4832.8,0.021]
[1755894859902,2.06936511,4832.4,4832.3,0.001]
[1755894860077,2.06936511,4832.4,4830.8,0.021]
[1755894860078,0.66,4832.3,4830.8,0.021]
[1755894860275,1.0662,4831.9,4830.8,0.021]
[1755894860498,7.6462,4831.9,4830.8,0.021]
[1755894860696,9.38271237,4831.9,4830.8,0.021]
[1755894861004,9.82071237,4831.9,4830.8,0.021]
[1755894862086,9.90366937,4831.9,4830.8,0.021]
[1755894862286,19.90366937,4831.9,4830.8,0.021]
[1755894863288,15.88566937,4831.9,4830.8,0.021]
[1755894863488,15.88566937,4831.9,4830.8,0.4748]
[1755894863489,18.80466937,4831.9,4830.8,0.4748]
[1755894863691,19.46466937,4831.9,4830.8,0.4748]
[1755894863895,12.88566937,4831.9,4830.8,0.021]
[1755894864104,15.50166937,4831.9,4831.3,0.4538]
[1755894864716,12.58266937,4831.9,4831.3,0.4538]
[1755894864880,12.58266937,4831.9,4831.8,0.3242]
[1755894865079,16.16166937,4831.9,4831.8,0.3242]
[1755894865280,16.16166937,4831.9,4831.8,0.021]
[1755894865717,16.46466937,4831.9,4831.8,0.021]
[1755894866190,16.90266937,4831.9,4831.8,0.021]
[1755894868082,16.16166937,4831.9,4831.8,0.021]
[1755894868309,16.46466937,4831.9,4831.8,0.021]
[1755894868711,12.58266937,4831.9,4831.8,0.3242]
[1755894868897,16.46466937,4831.9,4831.8,0.021]
[1755894869082,19.79946937,4831.9,4831.8,0.021]
[1755894869522,20.24307347,4831.9,4831.8,0.021]
[1755894871282,20.56718447,4831.9,4831.8,0.021]
[1755894874416,20.12918447,4831.9,4831.8,0.021]
[1755894874822,25.95618447,4831.9,4831.8,0.021]
[1755894875022,25.51818447,4831.9,4831.8,0.021]
[1755894875186,21.93918447,4831.9,4831.8,0.021]
[1755894875390,25.51818447,4831.9,4831.8,0.021]
[1755894876183,21.93918447,4831.9,4831.8,0.021]
[1755894876398,25.63107347,4831.9,4831.8,0.021]
[1755894876611,26.18535749,4831.9,4831.8,0.021]
[1755894878539,26.18697375,4831.9,4831.8,0.021]
[1755894878830,22.17097375,4831.9,4831.8,0.021]
[1755894878994,25.29627347,4831.9,4831.8,0.021]
[1755894879944,25.73427347,4831.9,4831.8,0.021]
[1755894880152,26.29017375,4831.9,4831.8,0.021]
[1755894880433,26.66537689,4831.9,4831.8,0.021]
[1755894880635,25.92722665,4831.9,4831.8,0.021]
[1755894880930,26.66811847,4831.9,4831.8,0.021]
[1755894881153,22.34922665,4831.9,4831.8,0.021]
[1755894881314,26.66819013,4831.9,4831.8,0.021]
[1755894881907,25.18622665,4831.9,4831.8,0.021]
[1755894882120,25.18622665,4831.9,4831.8,0.778]
[1755894882121,21.33327347,4831.9,4831.8,0.778]
[1755894882328,24.33327347,4831.9,4831.8,0.778]
[1755894882523,21.33327347,4831.9,4831.8,0.778]
[1755894882713,22.31735555,4831.9,4831.8,0.021]
[1755894883013,25.31735555,4831.9,4831.8,0.021]
[1755894883220,25.21415555,4831.9,4831.8,0.021]
[1755894883421,25.21415555,4831.9,4831.8,0.3242]
[1755894883928,21.63615555,4831.9,4831.8,0.3242]
[1755894884112,25.21415555,4831.9,4831.8,0.3242]
[1755894884734,33.07007921,4831.9,4831.8,0.021]
[1755894884945,33.50667921,4831.9,4831.8,0.021]
[1755894885209,33.18259713,4831.9,4831.8,0.0514]
[1755894885623,32.74599713,4831.9,4831.8,0.0514]
[1755894886437,32.74499713,4831.9,4831.8,0.0514]
[1755894887148,21.31207347,4831.9,4831.8,0.8084]
[1755894887314,24.88907347,4831.9,4831.8,0.0514]
[1755894887517,25.18807347,4831.9,4831.8,0.0514]
[1755894887845,25.62467347,4831.9,4831.8,0.0514]
[1755894888009,26.18041816,4831.9,4831.8,0.0514]
[1755894888209,25.62467347,4831.9,4831.8,0.0514]
[1755894889303,25.81798882,4831.9,4831.8,0.0514]
[1755894890006,26.14209766,4831.9,4831.8,0.0514]
[1755894891204,26.14210623,4831.9,4831.8,0.0514]
[1755894891947,25.70548946,4831.9,4831.8,0.0514]
[1755894892152,26.16758946,4831.9,4831.8,0.0514]
[1755894892852,25.70548946,4831.9,4831.8,0.0514]
[1755894893231,26.36526796,4831.9,4831.8,0.0514]
[1755894894359,26.82743397,4831.9,4831.8,0.0514]
[1755894894545,26.27078946,4831.9,4831.8,0.0514]
[1755894895140,26.82752239,4831.9,4831.8,0.0514]
[1755894895530,26.38677569,4831.9,4831.8,0.0514]
[1755894895848,26.06266685,4831.9,4831.8,0.0514]
[1755894897764,26.06121826,4831.9,4831.8,0.0514]
[1755894898267,26.8031218,4831.9,4831.8,0.0514]
[1755894900386,21.41870739,4831.9,4831.8,0.3521]
[1755894900742,21.88562488,4831.9,4831.8,0.3521]
[1755894901136,24.88562488,4831.9,4831.8,0.3521]
[1755894901337,24.88562488,4831.9,4831.8,0.7883]
[1755894901886,25.40265308,4831.9,4831.8,0.3521]
[1755894902377,25.69805308,4831.9,4831.8,0.0514]
[1755894902552,25.40268558,4831.9,4831.8,0.0514]
[1755894903061,25.40268558,4831.9,4831.8,0.3521]
[1755894903433,23.55168558,4831.9,4831.8,0.3521]
[1755894903638,17.43710085,4831.9,4831.8,0.7883]
[1755894903938,21.01110085,4831.9,4831.8,0.3521]
[1755894904247,21.67110085,4831.9,4831.8,0.0514]
[1755894904879,24.95020085,4831.9,4831.8,0.0514]
[1755894905038,25.85481999,4831.9,4831.8,0.0514]
[1755894905245,27.99669799,4831.9,4831.8,0.0514]
[1755894905768,28.86136481,4831.9,4831.8,0.0514]
[1755894905969,24.54797994,4831.9,4831.8,0.0514]
[1755894906171,23.68329799,4831.9,4831.8,0.3521]
[1755894906372,23.68329799,4831.9,4831.8,0.7883]
[1755894906877,15.23810085,4831.9,4831.8,0.7883]
[1755894907037,1.724,4831.9,4831.8,0.7883]
[1755894907242,5.298,4831.9,4831.8,0.7883]
[1755894908147,4.55296875,4831.9,4831.8,0.7883]
[1755894910271,4.65616875,4831.9,4831.8,0.7883]
[1755894910683,1.08216875,4831.9,4831.8,0.7883]
[1755894910885,4.65516875,4831.9,4831.8,0.7883]
[1755894912488,4.55196875,4831.9,4831.8,0.7883]
[1755894913894,0.002,4832.8,4831.9,0.66]
[1755894914058,10.0,4833.1,4832.8,0.66]
[1755894914059,2.74209391,4833.1,4832.8,0.66]
[1755894914260,1.726,4834.0,4833.0,0.1032]
[1755894914461,1.726,4834.0,4833.2,10.55692366]
[1755894914668,0.002,4834.0,4833.2,11.21692366]
[1755894914875,0.002,4834.5,4833.7,0.5]
[1755894915069,0.02,4834.8,4834.4,0.1032]
[1755894915271,3.592,4835.8,4834.8,3.66]
[1755894915475,0.02,4835.8,4835.7,10.55692366]
[1755894915662,1.724,4837.2,4835.7,10.55692366]
[1755894915663,3.572,4836.7,4835.8,3.66]
[1755894915881,3.572,4836.7,4836.5,10.66012366]
[1755894916261,3.572,4836.7,4836.5,0.1032]
[1755894916489,0.1052,4836.6,4835.8,0.1032]
[1755894916797,0.1032,4836.0,4835.3,0.1032]
[1755894916962,5.296,4835.9,4835.1,3.0]
[1755894917162,5.296,4835.9,4835.1,0.1032]
[1755894917563,5.296,4835.9,4834.4,3.0]
[1755894917768,0.1032,4835.4,4834.7,0.1032]
[1755894917964,3.571,4835.3,4834.7,0.1032]
[1755894918172,3.571,4835.3,4834.4,3.0]
[1755894918372,3.571,4835.3,4834.3,16.98492183]
[1755894918373,3.571,4835.3,4834.3,0.1032]
[1755894918574,0.1032,4834.8,4834.1,0.1032]
[1755894918801,3.571,4834.7,4834.2,0.02068594]
[1755894919083,3.571,4834.7,4834.1,0.1032]
[1755894920114,3.571,4834.7,4832.5,16.98492183]
[1755894920274,3.571,4834.7,4833.7,0.1032]
[1755894920275,0.1032,4834.4,4833.7,0.1032]
[1755894920608,0.02,4833.8,4833.7,0.1032]
[1755894920816,3.59,4833.8,4833.7,0.1032]
[1755894922091,3.6932,4833.8,4832.8,0.02]
[1755894922289,0.1032,4833.3,4832.8,0.02]
[1755894922603,0.1032,4833.0,4832.8,0.02]
[1755894922806,1.723,4832.9,4832.8,0.02]
[1755894925390,5.292,4832.9,4832.8,0.02]
[1755894926975,1.723,4832.9,4832.8,0.02]
[1755894927218,3.569,4833.3,4832.9,3.0]
[1755894927510,3.569,4833.5,4832.9,3.0]
[1755894927723,3.569,4833.5,4833.4,0.1032]
[1755894928687,1.723,4833.7,4833.4,0.1032]
[1755894928886,1.723,4833.7,4833.5,0.02068894]
[1755894928887,5.292,4833.7,4833.5,0.02068894]
[1755894929472,5.292,4833.7,4833.4,0.1032]
[1755894930029,5.292,4833.7,4833.5,0.02068894]
[1755894930311,5.292,4833.7,4833.4,0.1032]
[1755894930877,5.292,4833.7,4833.5,0.02068894]
[1755894931316,5.292,4833.7,4833.5,0.02168894]
[1755894931614,3.589,4833.8,4833.6,3.0]
[1755894931777,3.589,4833.8,4833.7,0.02068808]
[1755894931978,3.589,4833.8,4833.7,0.12388808]
[1755894932984,0.02,4833.8,4833.7,0.12388808]
[1755894933695,0.02,4833.8,4833.7,0.78388808]
[1755894934825,1.723,4835.1,4833.8,0.66]
[1755894935031,1.723,4835.1,4835.0,0.1032]
[1755894935191,2.4791,4835.1,4833.9,3.0]
[1755894935390,1.723,4835.1,4834.7,0.1032]
[1755894935625,1.723,4835.1,4834.8,0.02068337]
[1755894936488,0.2985,4834.9,4834.7,0.1032]
[1755894936695,0.2985,4834.9,4833.3,0.66]
[1755894936889,0.2985,4834.9,4834.3,0.1032]
[1755894936890,0.4576,4834.8,4834.3,0.1032]
[1755894937124,4.0256,4834.7,4834.3,0.1032]
[1755894937288,3.568,4834.7,4834.3,0.1032]
[1755894937629,3.568,4834.7,4833.9,0.66]
[1755894937829,3.568,4834.7,4834.4,0.02068509]
[1755894938017,3.568,4834.7,4834.4,0.15757632]
[1755894938220,3.568,4834.7,4833.9,3.66]
[1755894938732,5.385,4837.2,4833.9,3.66]
[1755894938733,3.567,4835.4,4834.6,3.66]
[1755894938935,3.567,4835.3,4834.6,3.66]
[1755894940122,3.567,4835.3,4834.3,0.66]
[1755894940323,3.567,4835.3,4834.3,0.81806106]
[1755894940716,3.567,4835.3,4834.4,0.02068509]
[1755894941229,3.567,4835.4,4834.4,0.02068509]
[1755894941630,0.32573901,4837.3,4835.0,3.66]
[1755894941631,1.722,4836.5,4835.0,3.66]
[1755894941797,1.722,4836.5,4835.8,3.0]
[1755894941997,1.722,4836.5,4835.9,0.02067867]
[1755894942412,3.569,4836.6,4835.9,0.68067867]
[1755894942839,0.002,4836.6,4835.9,0.7884548]
[1755894943002,0.00061205,4836.3,4835.9,0.76777613]
[1755894944526,0.00061205,4836.3,4836.0,0.68067824]